[Event "Late-Titled-Tuesday-Blitz-April-23-2024"]
[Site "Chess.com"]
[Date "2024.04.23"]
[Round "1"]
[White "jaramsdal"]
[Black "Bykov_Egor"]
[Result "0-1"]
[WhiteElo "2257"]
[BlackElo "2615"]
[TimeControl "180+1"]
[EndTime "14:06:43 PDT"]
[Termination "Bykov_Egor won by resignation"]

1. e4 {[%clk 0:02:58.4]} 1... e5 {[%clk 0:02:59.2]} 2. Nf3 {[%clk 0:02:58]} 2...
Nc6 {[%clk 0:02:59.7]} 3. Bc4 {[%clk 0:02:58.4]} 3... Bc5 {[%clk 0:02:58.9]} 4.
d3 {[%clk 0:02:57.1]} 4... Nf6 {[%clk 0:02:58.9]} 5. c3 {[%clk 0:02:57.1]} 5...
O-O {[%clk 0:02:58.9]} 6. O-O {[%clk 0:02:52.1]} 6... d5 {[%clk 0:02:58.8]} 7.
exd5 {[%clk 0:02:49.6]} 7... Nxd5 {[%clk 0:02:59.7]} 8. Re1 {[%clk 0:02:48.1]}
8... Bg4 {[%clk 0:02:58.9]} 9. h3 {[%clk 0:02:39.9]} 9... Bh5 {[%clk 0:02:58.7]}
10. Nbd2 {[%clk 0:02:33]} 10... Nb6 {[%clk 0:02:57.9]} 11. Bb5 {[%clk
0:02:22.9]} 11... Bd6 {[%clk 0:02:57.7]} 12. Ne4 {[%clk 0:02:19.5]} 12... a6
{[%clk 0:02:46.2]} 13. Bxc6 {[%clk 0:02:19.2]} 13... bxc6 {[%clk 0:02:47.1]} 14.
Ng3 {[%clk 0:02:19.7]} 14... Bg6 {[%clk 0:02:46.8]} 15. Nxe5 {[%clk 0:02:12.4]}
15... Bxe5 {[%clk 0:02:41.6]} 16. Rxe5 {[%clk 0:02:13.3]} 16... Bxd3 {[%clk
0:02:39.9]} 17. Bg5 {[%clk 0:01:46.8]} 17... f6 {[%clk 0:02:24]} 18. Re3 {[%clk
0:01:46.7]} 18... Bg6 {[%clk 0:01:52.2]} 19. Bf4 {[%clk 0:01:41.2]} 19... Nd5
{[%clk 0:01:42.2]} 20. Rf3 {[%clk 0:01:41.2]} 20... Bf7 {[%clk 0:01:37.9]} 21.
Rd3 {[%clk 0:01:25.3]} 21... Qc8 {[%clk 0:01:31.2]} 22. Qf3 {[%clk 0:01:13.2]}
22... Rb8 {[%clk 0:01:23.6]} 23. b3 {[%clk 0:01:12.4]} 23... Re8 {[%clk
0:01:19.3]} 24. Bd2 {[%clk 0:01:06.1]} 24... Bg6 {[%clk 0:01:16]} 25. Rd4 {[%clk
0:01:06.6]} 25... Qe6 {[%clk 0:01:11.2]} 26. Re1 {[%clk 0:01:04.1]} 26... Qf7
{[%clk 0:01:07.3]} 27. Rxe8+ {[%clk 0:01:00.1]} 27... Qxe8 {[%clk 0:01:07.1]}
28. c4 {[%clk 0:00:56.1]} 28... Nb6 {[%clk 0:01:06.2]} 29. h4 {[%clk 0:00:51.6]}
29... c5 {[%clk 0:01:05.8]} 30. Rf4 {[%clk 0:00:46.4]} 30... Rd8 {[%clk
0:01:06.4]} 31. Bc3 {[%clk 0:00:43.6]} 31... Rd3 {[%clk 0:01:02.5]} 32. Re4
{[%clk 0:00:12.4]} 32... Bxe4 {[%clk 0:00:45.4]} 33. Qxe4 {[%clk 0:00:13.3]}
33... Qxe4 {[%clk 0:00:42]} 34. Nxe4 {[%clk 0:00:13.8]} 34... f5 {[%clk
0:00:40.4]} 35. Nxc5 {[%clk 0:00:10]} 35... Rxc3 {[%clk 0:00:40.3]} 0-1

[Event "Late-Titled-Tuesday-Blitz-April-23-2024"]
[Site "Chess.com"]
[Date "2024.04.23"]
[Round "1"]
[White "carokannlover213"]
[Black "sassassasss"]
[Result "1-0"]
[WhiteElo "2785"]
[BlackElo "2450"]
[TimeControl "180+1"]
[EndTime "14:06:47 PDT"]
[Termination "carokannlover213 won by resignation"]

1. e4 {[%clk 0:02:59.9]} 1... Nc6 {[%clk 0:02:59.4]} 2. d4 {[%clk 0:02:56.2]}
2... d6 {[%clk 0:02:59.2]} 3. f3 {[%clk 0:02:52.9]} 3... e5 {[%clk 0:02:58.9]}
4. d5 {[%clk 0:02:53.2]} 4... Nce7 {[%clk 0:02:59.2]} 5. c4 {[%clk 0:02:50.7]}
5... Ng6 {[%clk 0:02:59.1]} 6. Nc3 {[%clk 0:02:50.9]} 6... Be7 {[%clk
0:02:59.7]} 7. Be3 {[%clk 0:02:50.9]} 7... Bg5 {[%clk 0:02:59.5]} 8. Bf2 {[%clk
0:02:50.5]} 8... h6 {[%clk 0:02:54.1]} 9. g3 {[%clk 0:02:46.8]} 9... f5 {[%clk
0:02:53.9]} 10. h4 {[%clk 0:02:44.3]} 10... Be7 {[%clk 0:02:53.6]} 11. exf5
{[%clk 0:02:41.1]} 11... Bxf5 {[%clk 0:02:53]} 12. Bd3 {[%clk 0:02:41.7]} 12...
Qd7 {[%clk 0:02:51.6]} 13. Qc2 {[%clk 0:02:36.1]} 13... Bxd3 {[%clk 0:02:44]}
14. Qxd3 {[%clk 0:02:37]} 14... Nf8 {[%clk 0:02:43.9]} 15. O-O-O {[%clk
0:02:37.5]} 15... Nf6 {[%clk 0:02:43.9]} 16. Be3 {[%clk 0:02:35.3]} 16... a6
{[%clk 0:02:42.5]} 17. Nge2 {[%clk 0:02:34.1]} 17... O-O-O {[%clk 0:02:42]} 18.
g4 {[%clk 0:02:33.7]} 18... Kb8 {[%clk 0:02:42.1]} 19. Ng3 {[%clk 0:02:29.1]}
19... g6 {[%clk 0:02:30.7]} 20. Bf2 {[%clk 0:02:22.1]} 20... h5 {[%clk
0:02:27.6]} 21. g5 {[%clk 0:02:11.1]} 21... Ne8 {[%clk 0:02:21.6]} 22. Qe3
{[%clk 0:02:10]} 22... b6 {[%clk 0:02:21.5]} 23. Qd3 {[%clk 0:02:10.2]} 23...
Ng7 {[%clk 0:02:20]} 24. Kb1 {[%clk 0:02:08.4]} 24... Nf5 {[%clk 0:02:17.7]} 25.
Nge4 {[%clk 0:02:08.7]} 25... Qc8 {[%clk 0:02:05.2]} 26. Ka1 {[%clk 0:02:07.1]}
26... Nd7 {[%clk 0:02:04.8]} 27. b4 {[%clk 0:02:06.1]} 27... Bf8 {[%clk
0:02:01]} 28. Rb1 {[%clk 0:02:05.7]} 28... Bg7 {[%clk 0:02:00.5]} 29. c5 {[%clk
0:02:05]} 29... dxc5 {[%clk 0:01:59.9]} 30. bxc5 {[%clk 0:02:02.4]} 30... Nd4
{[%clk 0:01:55.4]} 31. d6 {[%clk 0:01:53.1]} 31... Ka7 {[%clk 0:01:49.5]} 32. c6
{[%clk 0:01:24.9]} 32... Nb8 {[%clk 0:01:31.5]} 33. d7 {[%clk 0:01:17.9]} 33...
Nxd7 {[%clk 0:01:31.2]} 34. cxd7 {[%clk 0:01:18.3]} 34... Rxd7 {[%clk 0:01:31]}
35. Bxd4 {[%clk 0:01:08.4]} 35... Rxd4 {[%clk 0:01:29.9]} 36. Qc2 {[%clk
0:01:04.6]} 36... Rf8 {[%clk 0:01:24]} 37. Rhf1 {[%clk 0:00:52.9]} 37... Rf4
{[%clk 0:01:14.3]} 38. Ne2 {[%clk 0:00:48.9]} 38... Rxh4 {[%clk 0:01:01.1]} 39.
Nxd4 {[%clk 0:00:48.7]} 39... exd4 {[%clk 0:01:01.3]} 40. Nf6 {[%clk 0:00:44.5]}
40... Qe6 {[%clk 0:00:23.4]} 41. Qxc7+ {[%clk 0:00:40.3]} 1-0

[Event "Late-Titled-Tuesday-Blitz-April-23-2024"]
[Site "Chess.com"]
[Date "2024.04.23"]
[Round "1"]
[White "HipsterChess22"]
[Black "BabageldiAnnaberdiyev"]
[Result "0-1"]
[WhiteElo "2235"]
[BlackElo "2605"]
[TimeControl "180+1"]
[EndTime "14:06:47 PDT"]
[Termination "BabageldiAnnaberdiyev won on time"]

1. d4 {[%clk 0:02:59.4]} 1... e6 {[%clk 0:03:00.9]} 2. Nc3 {[%clk 0:02:58.8]}
2... f5 {[%clk 0:03:01.4]} 3. e4 {[%clk 0:02:51.6]} 3... Bb4 {[%clk 0:02:59.1]}
4. exf5 {[%clk 0:02:44.5]} 4... exf5 {[%clk 0:03:00]} 5. Nf3 {[%clk 0:02:29.3]}
5... Nf6 {[%clk 0:02:59]} 6. Bd3 {[%clk 0:02:15.9]} 6... O-O {[%clk 0:02:58.4]}
7. O-O {[%clk 0:02:14]} 7... d6 {[%clk 0:02:56.9]} 8. a3 {[%clk 0:01:58]} 8...
Bxc3 {[%clk 0:02:56.7]} 9. bxc3 {[%clk 0:01:58.9]} 9... Nc6 {[%clk 0:02:55.6]}
10. Bg5 {[%clk 0:01:42.9]} 10... h6 {[%clk 0:02:55]} 11. Bd2 {[%clk 0:01:37.6]}
11... Ne4 {[%clk 0:02:51.6]} 12. Bc4+ {[%clk 0:01:28.5]} 12... d5 {[%clk
0:02:48.6]} 13. Bb5 {[%clk 0:01:24.7]} 13... Bd7 {[%clk 0:02:48.6]} 14. Bxc6
{[%clk 0:01:23.5]} 14... Bxc6 {[%clk 0:02:49.5]} 15. Ne5 {[%clk 0:01:22.6]}
15... Be8 {[%clk 0:02:50]} 16. f3 {[%clk 0:01:17.8]} 16... Nd6 {[%clk 0:02:50]}
17. Re1 {[%clk 0:01:07.4]} 17... Bf7 {[%clk 0:02:22.4]} 18. Qc1 {[%clk
0:01:02.3]} 18... Kh7 {[%clk 0:02:20.6]} 19. a4 {[%clk 0:01:01.1]} 19... a5
{[%clk 0:02:10.2]} 20. Re2 {[%clk 0:00:39.4]} 20... b6 {[%clk 0:02:09.2]} 21.
Qa3 {[%clk 0:00:27.8]} 21... Qh4 {[%clk 0:02:03.1]} 22. Be1 {[%clk 0:00:21.4]}
22... Qg5 {[%clk 0:01:58.7]} 23. Bd2 {[%clk 0:00:19.6]} 23... f4 {[%clk
0:01:58.4]} 24. Rae1 {[%clk 0:00:10.8]} 24... Bg6 {[%clk 0:01:53.5]} 25. Qc1
{[%clk 0:00:09]} 25... Be8 {[%clk 0:01:42.6]} 26. Nd3 {[%clk 0:00:07.3]} 26...
Bxa4 {[%clk 0:01:36.8]} 27. Bxf4 {[%clk 0:00:05.8]} 27... Qf6 {[%clk 0:01:28.7]}
28. Re7 {[%clk 0:00:05.8]} 28... Rae8 {[%clk 0:01:26.2]} 29. Bxd6 {[%clk
0:00:02.2]} 29... Qxd6 {[%clk 0:01:21.7]} 30. Rxe8 {[%clk 0:00:02.3]} 30... Bxe8
{[%clk 0:01:22.5]} 31. Qe3 {[%clk 0:00:01.9]} 31... Bg6 {[%clk 0:01:22.5]} 32.
Qe6 {[%clk 0:00:01.3]} 32... Qxe6 {[%clk 0:01:15.2]} 33. Rxe6 {[%clk 0:00:02.2]}
33... a4 {[%clk 0:01:14.9]} 34. Re1 {[%clk 0:00:01.7]} 34... Ra8 {[%clk
0:01:11.8]} 35. Ra1 {[%clk 0:00:01.8]} 35... a3 {[%clk 0:01:08.6]} 36. Kf2
{[%clk 0:00:01.9]} 36... Ra5 {[%clk 0:00:58.1]} 37. Ke3 {[%clk 0:00:02.3]} 37...
c5 {[%clk 0:00:58.6]} 38. Kd2 {[%clk 0:00:01.9]} 38... h5 {[%clk 0:00:53.4]} 0-1

[Event "Late-Titled-Tuesday-Blitz-April-23-2024"]
[Site "Chess.com"]
[Date "2024.04.23"]
[Round "1"]
[White "Zura_19"]
[Black "th3d4rkness"]
[Result "1-0"]
[WhiteElo "2571"]
[BlackElo "2129"]
[TimeControl "180+1"]
[EndTime "14:06:51 PDT"]
[Termination "Zura_19 won by resignation"]

1. d4 {[%clk 0:03:00.1]} 1... Nf6 {[%clk 0:02:58.4]} 2. Bg5 {[%clk 0:03:00.2]}
2... Ne4 {[%clk 0:02:56.9]} 3. h4 {[%clk 0:02:59.6]} 3... h6 {[%clk 0:02:54.4]}
4. Bf4 {[%clk 0:02:57.8]} 4... d5 {[%clk 0:02:53.3]} 5. Nd2 {[%clk 0:02:56.8]}
5... Nxd2 {[%clk 0:02:41.7]} 6. Qxd2 {[%clk 0:02:57.7]} 6... c5 {[%clk
0:02:39.3]} 7. e3 {[%clk 0:02:55.8]} 7... Nc6 {[%clk 0:02:37.4]} 8. Nf3 {[%clk
0:02:55.9]} 8... Bg4 {[%clk 0:02:34.7]} 9. c3 {[%clk 0:02:33.8]} 9... e6 {[%clk
0:02:21.8]} 10. Ne5 {[%clk 0:02:33.8]} 10... Nxe5 {[%clk 0:02:16.7]} 11. Bxe5
{[%clk 0:02:34.7]} 11... a6 {[%clk 0:02:15.3]} 12. f3 {[%clk 0:02:30.7]} 12...
Bf5 {[%clk 0:02:14.2]} 13. g4 {[%clk 0:02:31.3]} 13... Bh7 {[%clk 0:02:12.1]}
14. Bd3 {[%clk 0:02:22.1]} 14... Bxd3 {[%clk 0:02:06.6]} 15. Qxd3 {[%clk
0:02:23]} 15... cxd4 {[%clk 0:01:47.6]} 16. cxd4 {[%clk 0:02:06.4]} 16... Bb4+
{[%clk 0:01:42.7]} 17. Ke2 {[%clk 0:02:06.5]} 17... O-O {[%clk 0:01:40]} 18.
Rag1 {[%clk 0:01:47.6]} 18... Bd6 {[%clk 0:01:35.1]} 19. h5 {[%clk 0:01:19.1]}
19... Bxe5 {[%clk 0:01:34.1]} 20. dxe5 {[%clk 0:01:20]} 20... Qc7 {[%clk
0:01:28]} 21. f4 {[%clk 0:01:19.2]} 21... Rac8 {[%clk 0:01:26.5]} 22. g5 {[%clk
0:01:17.5]} 22... hxg5 {[%clk 0:01:20.5]} 23. Rxg5 {[%clk 0:01:16.2]} 23... Qc2+
{[%clk 0:01:17.3]} 24. Qxc2 {[%clk 0:01:16.2]} 24... Rxc2+ {[%clk 0:01:14.2]}
25. Kd3 {[%clk 0:01:17.1]} 25... Rc7 {[%clk 0:01:03.8]} 26. Rhg1 {[%clk
0:01:12]} 26... f6 {[%clk 0:01:00.7]} 27. Rg6 {[%clk 0:01:10.4]} 27... Kh7
{[%clk 0:00:56]} 28. h6 {[%clk 0:01:05.8]} 28... gxh6 {[%clk 0:00:51]} 29. exf6
{[%clk 0:01:04.7]} 29... Rcf7 {[%clk 0:00:48.3]} 30. Kd4 {[%clk 0:00:57.4]}
30... b6 {[%clk 0:00:42.8]} 31. Ke5 {[%clk 0:00:56.9]} 31... Re8 {[%clk
0:00:30.5]} 32. Rg7+ {[%clk 0:00:55.1]} 32... Rxg7 {[%clk 0:00:28.5]} 33. Rxg7+
{[%clk 0:00:56]} 33... Kh8 {[%clk 0:00:27.8]} 34. Re7 {[%clk 0:00:56.3]} 34...
Rf8 {[%clk 0:00:22.3]} 35. Kxe6 {[%clk 0:00:55.6]} 35... h5 {[%clk 0:00:22.7]}
36. Rg7 {[%clk 0:00:54.9]} 36... Re8+ {[%clk 0:00:19.9]} 37. Kf7 {[%clk
0:00:54.5]} 37... Rxe3 {[%clk 0:00:19.1]} 38. Rg5 {[%clk 0:00:54.5]} 38... Rh3
{[%clk 0:00:16.5]} 39. Ke7 {[%clk 0:00:45.8]} 39... Re3+ {[%clk 0:00:15.6]} 40.
Re5 {[%clk 0:00:46.1]} 40... Rf3 {[%clk 0:00:13.4]} 41. f7 {[%clk 0:00:46]}
41... Rxf4 {[%clk 0:00:11.8]} 42. f8=Q+ {[%clk 0:00:46.2]} 42... Rxf8 {[%clk
0:00:11.2]} 43. Kxf8 {[%clk 0:00:47.1]} 43... Kh7 {[%clk 0:00:11.8]} 44. Rxh5+
{[%clk 0:00:47.3]} 44... Kg6 {[%clk 0:00:12.3]} 45. Rxd5 {[%clk 0:00:48.2]} 1-0

[Event "Late-Titled-Tuesday-Blitz-April-23-2024"]
[Site "Chess.com"]
[Date "2024.04.23"]
[Round "1"]
[White "norwaytoadog"]
[Black "samolo"]
[Result "0-1"]
[WhiteElo "2352"]
[BlackElo "2661"]
[TimeControl "180+1"]
[EndTime "14:06:52 PDT"]
[Termination "samolo won by resignation"]

1. e4 {[%clk 0:03:00]} 1... c5 {[%clk 0:02:56.7]} 2. Nf3 {[%clk 0:03:00.3]} 2...
d6 {[%clk 0:02:57]} 3. Bb5+ {[%clk 0:03:00.5]} 3... Nd7 {[%clk 0:02:55]} 4. c3
{[%clk 0:03:00.4]} 4... Nf6 {[%clk 0:02:54.2]} 5. Bd3 {[%clk 0:02:58.5]} 5... g6
{[%clk 0:02:52.4]} 6. Bc2 {[%clk 0:02:57.3]} 6... Bg7 {[%clk 0:02:53]} 7. O-O
{[%clk 0:02:56.2]} 7... O-O {[%clk 0:02:53.5]} 8. d4 {[%clk 0:02:55.5]} 8...
cxd4 {[%clk 0:02:35.2]} 9. cxd4 {[%clk 0:02:55.5]} 9... Nb6 {[%clk 0:02:35.9]}
10. h3 {[%clk 0:02:53.3]} 10... Bd7 {[%clk 0:02:33.1]} 11. Nc3 {[%clk
0:02:52.3]} 11... Rc8 {[%clk 0:02:32.3]} 12. Qe2 {[%clk 0:02:44.2]} 12... Qc7
{[%clk 0:02:19.5]} 13. Bf4 {[%clk 0:02:32.9]} 13... Nh5 {[%clk 0:02:10.3]} 14.
Bh2 {[%clk 0:02:27.5]} 14... e5 {[%clk 0:02:10.7]} 15. dxe5 {[%clk 0:02:11.6]}
15... dxe5 {[%clk 0:02:11.6]} 16. Bb3 {[%clk 0:02:06.8]} 16... Nf4 {[%clk
0:02:10.7]} 17. Qd2 {[%clk 0:01:48.2]} 17... Bh6 {[%clk 0:01:41.9]} 18. Kh1
{[%clk 0:01:47.7]} 18... Rfd8 {[%clk 0:01:39.2]} 19. Qe3 {[%clk 0:01:17.6]}
19... Kg7 {[%clk 0:01:34.4]} 20. Bxf4 {[%clk 0:01:05.2]} 20... Bxf4 {[%clk
0:01:33.8]} 21. Qe2 {[%clk 0:01:05.2]} 21... Be6 {[%clk 0:01:06.9]} 22. g3
{[%clk 0:00:59]} 22... Bxh3 {[%clk 0:00:50.9]} 23. gxf4 {[%clk 0:00:58.4]} 23...
Bxf1 {[%clk 0:00:51.2]} 24. Rxf1 {[%clk 0:00:54.6]} 24... exf4 {[%clk
0:00:52.1]} 25. e5 {[%clk 0:00:51.6]} 25... Qd7 {[%clk 0:00:52.1]} 26. Kh2
{[%clk 0:00:43.3]} 26... Qf5 {[%clk 0:00:50.8]} 27. Nh4 {[%clk 0:00:34.1]} 27...
Qd3 {[%clk 0:00:47.9]} 28. Qg4 {[%clk 0:00:29.1]} 28... Qxf1 {[%clk 0:00:46.7]}
29. Nf5+ {[%clk 0:00:27.5]} 29... Kh8 {[%clk 0:00:46.8]} 30. Nh6 {[%clk
0:00:26.7]} 30... Qxf2+ {[%clk 0:00:46.6]} 31. Kh3 {[%clk 0:00:25.1]} 31... Qg3+
{[%clk 0:00:41.8]} 32. Qxg3 {[%clk 0:00:24.4]} 32... fxg3 {[%clk 0:00:42.7]} 33.
Nxf7+ {[%clk 0:00:24.5]} 33... Kg7 {[%clk 0:00:43.4]} 34. Nxd8 {[%clk
0:00:24.1]} 34... Rxd8 {[%clk 0:00:44.3]} 35. Kxg3 {[%clk 0:00:24.2]} 35... Re8
{[%clk 0:00:42.8]} 36. Kf4 {[%clk 0:00:24]} 36... Rf8+ {[%clk 0:00:42]} 37. Ke4
{[%clk 0:00:23.7]} 37... h5 {[%clk 0:00:41.6]} 38. Nb5 {[%clk 0:00:22.1]} 38...
h4 {[%clk 0:00:41.5]} 39. Nd6 {[%clk 0:00:22.6]} 39... h3 {[%clk 0:00:41.5]} 40.
e6 {[%clk 0:00:22.6]} 40... h2 {[%clk 0:00:41.5]} 41. e7 {[%clk 0:00:21.5]}
41... h1=Q+ {[%clk 0:00:41.7]} 0-1

[Event "Late-Titled-Tuesday-Blitz-April-23-2024"]
[Site "Chess.com"]
[Date "2024.04.23"]
[Round "1"]
[White "sjoerd893"]
[Black "Mops_2004"]
[Result "0-1"]
[WhiteElo "2495"]
[BlackElo "2870"]
[TimeControl "180+1"]
[EndTime "14:06:54 PDT"]
[Termination "Mops_2004 won on time"]

1. e4 {[%clk 0:02:58.1]} 1... g6 {[%clk 0:02:59.2]} 2. d4 {[%clk 0:02:57.8]}
2... Bg7 {[%clk 0:02:59.6]} 3. Be3 {[%clk 0:02:57.6]} 3... d6 {[%clk 0:02:59.5]}
4. Nc3 {[%clk 0:02:57.7]} 4... a6 {[%clk 0:02:59.7]} 5. Qd2 {[%clk 0:02:56.4]}
5... b5 {[%clk 0:02:59.6]} 6. O-O-O {[%clk 0:02:56]} 6... Bb7 {[%clk 0:02:59.9]}
7. f3 {[%clk 0:02:56.3]} 7... Nd7 {[%clk 0:02:59.7]} 8. g4 {[%clk 0:02:55.9]}
8... e6 {[%clk 0:02:59.4]} 9. h4 {[%clk 0:02:55.5]} 9... h6 {[%clk 0:02:59.9]}
10. Kb1 {[%clk 0:02:54.8]} 10... Ne7 {[%clk 0:02:59.9]} 11. Nce2 {[%clk
0:02:34.6]} 11... c5 {[%clk 0:02:58.6]} 12. dxc5 {[%clk 0:02:18.2]} 12... dxc5
{[%clk 0:02:57.7]} 13. Bg2 {[%clk 0:01:57.1]} 13... Qc7 {[%clk 0:02:56.5]} 14.
h5 {[%clk 0:01:42.9]} 14... g5 {[%clk 0:02:51.7]} 15. f4 {[%clk 0:01:42.9]}
15... gxf4 {[%clk 0:02:50]} 16. Bxf4 {[%clk 0:01:40.3]} 16... Ne5 {[%clk
0:02:49.1]} 17. Nf3 {[%clk 0:01:33.9]} 17... N7c6 {[%clk 0:02:48.4]} 18. Nxe5
{[%clk 0:01:26.4]} 18... Nxe5 {[%clk 0:02:46.3]} 19. g5 {[%clk 0:01:25.7]} 19...
hxg5 {[%clk 0:02:45.9]} 20. Bxg5 {[%clk 0:01:20.2]} 20... Nc4 {[%clk 0:02:45.7]}
21. Qf4 {[%clk 0:01:15.9]} 21... Qxf4 {[%clk 0:02:27.6]} 22. Nxf4 {[%clk
0:01:07.1]} 22... Bxb2 {[%clk 0:02:26.8]} 23. Nd3 {[%clk 0:00:39.3]} 23... Bd4
{[%clk 0:02:23.9]} 24. h6 {[%clk 0:00:36.5]} 24... f6 {[%clk 0:02:00.2]} 25. Bc1
{[%clk 0:00:31]} 25... Ke7 {[%clk 0:01:52]} 26. h7 {[%clk 0:00:20.4]} 26... b4
{[%clk 0:01:43.7]} 27. Nf4 {[%clk 0:00:20.1]} 27... Ne5 {[%clk 0:01:33.7]} 28.
a3 {[%clk 0:00:14.6]} 28... a5 {[%clk 0:01:32.3]} 29. Bb2 {[%clk 0:00:13.7]}
29... Bxb2 {[%clk 0:01:29.1]} 30. Kxb2 {[%clk 0:00:14.6]} 30... Raf8 {[%clk
0:01:22.1]} 31. Rh5 {[%clk 0:00:08.7]} 31... Bc6 {[%clk 0:00:53.8]} 32. Rxe5
{[%clk 0:00:06]} 32... fxe5 {[%clk 0:00:53.9]} 33. Ng6+ {[%clk 0:00:06.7]} 33...
Ke8 {[%clk 0:00:43.6]} 34. Rd6 {[%clk 0:00:06.1]} 34... Bd7 {[%clk 0:00:35.2]}
35. Nxe5 {[%clk 0:00:05.8]} 35... Rxh7 {[%clk 0:00:34.9]} 36. Nc4 {[%clk
0:00:03.3]} 36... Rf2 {[%clk 0:00:32.9]} 0-1

[Event "Late-Titled-Tuesday-Blitz-April-23-2024"]
[Site "Chess.com"]
[Date "2024.04.23"]
[Round "1"]
[White "Veleamater"]
[Black "CarlosjPineror"]
[Result "0-1"]
[WhiteElo "2443"]
[BlackElo "2766"]
[TimeControl "180+1"]
[EndTime "14:06:55 PDT"]
[Termination "CarlosjPineror won by resignation"]

1. g3 {[%clk 0:03:00.9]} 1... Nf6 {[%clk 0:02:58]} 2. Bg2 {[%clk 0:03:01]} 2...
g6 {[%clk 0:02:58.1]} 3. d3 {[%clk 0:03:01.6]} 3... Bg7 {[%clk 0:02:58.7]} 4.
Nc3 {[%clk 0:02:58.3]} 4... O-O {[%clk 0:02:59.2]} 5. e4 {[%clk 0:02:58.8]} 5...
c5 {[%clk 0:02:58.6]} 6. f4 {[%clk 0:02:58.8]} 6... d6 {[%clk 0:02:59]} 7. Nf3
{[%clk 0:02:58.8]} 7... Nc6 {[%clk 0:02:59.3]} 8. h3 {[%clk 0:02:58.7]} 8... Rb8
{[%clk 0:02:58.5]} 9. a4 {[%clk 0:02:58.1]} 9... a6 {[%clk 0:02:58.4]} 10. O-O
{[%clk 0:02:58.3]} 10... b5 {[%clk 0:02:56.6]} 11. axb5 {[%clk 0:02:58.7]} 11...
axb5 {[%clk 0:02:57.5]} 12. g4 {[%clk 0:02:59.2]} 12... b4 {[%clk 0:02:57.1]}
13. Ne2 {[%clk 0:02:59.4]} 13... Nd7 {[%clk 0:02:56.8]} 14. Ng3 {[%clk
0:02:58.2]} 14... Nd4 {[%clk 0:02:38.6]} 15. Nh4 {[%clk 0:02:45.5]} 15... Bb7
{[%clk 0:02:21.6]} 16. g5 {[%clk 0:02:41.7]} 16... Qb6 {[%clk 0:02:17]} 17. Kh1
{[%clk 0:02:40.9]} 17... Ra8 {[%clk 0:02:17.2]} 18. Rb1 {[%clk 0:02:40.6]} 18...
Bc6 {[%clk 0:02:05.2]} 19. Be3 {[%clk 0:02:30.6]} 19... Ra2 {[%clk 0:01:59.5]}
20. c3 {[%clk 0:02:24.5]} 20... bxc3 {[%clk 0:01:25.3]} 21. bxc3 {[%clk
0:02:20]} 21... Nb5 {[%clk 0:01:26]} 22. Qb3 {[%clk 0:01:51.4]} 22... Qa5 {[%clk
0:01:21]} 23. f5 {[%clk 0:01:35.8]} 23... Ra3 {[%clk 0:01:11.7]} 24. Qb2 {[%clk
0:00:47.2]} 24... Bxc3 {[%clk 0:01:10.6]} 25. Qe2 {[%clk 0:00:46.7]} 25... Ra2
{[%clk 0:01:07.8]} 26. Qd1 {[%clk 0:00:42.8]} 26... Bd4 {[%clk 0:01:05.5]} 27.
Bxd4 {[%clk 0:00:41.3]} 27... Nxd4 {[%clk 0:01:03]} 28. fxg6 {[%clk 0:00:40.4]}
28... hxg6 {[%clk 0:01:02.5]} 29. Rf4 {[%clk 0:00:29.9]} 29... Ne5 {[%clk
0:01:02.5]} 30. Qf1 {[%clk 0:00:26.2]} 30... Qd2 {[%clk 0:00:58.5]} 31. Rd1
{[%clk 0:00:22.9]} 31... Qe3 {[%clk 0:00:48.4]} 32. Nxg6 {[%clk 0:00:15.2]}
32... Nxg6 {[%clk 0:00:43.2]} 33. Rg4 {[%clk 0:00:15.1]} 33... Ne5 {[%clk
0:00:34.8]} 34. Nf5 {[%clk 0:00:15.1]} 34... Nxf5 {[%clk 0:00:33.6]} 35. Qxf5
{[%clk 0:00:14.2]} 35... Nxg4 {[%clk 0:00:33.5]} 36. hxg4 {[%clk 0:00:14.3]}
36... Qf2 {[%clk 0:00:32.4]} 37. Qxf2 {[%clk 0:00:06.4]} 37... Rxf2 {[%clk
0:00:33.3]} 38. g6 {[%clk 0:00:06.9]} 38... fxg6 {[%clk 0:00:32.5]} 0-1